bitfinex/quotes_BTCUSD_20250802
["timestamp","ask_amount","ask_price","bid_price","bid_amount"]
[1754121185081,5.50184474,114200.0,114190.0,0.03159]
[1754121185295,5.50184474,114200.0,114190.0,0.00314]
[1754121187220,4.865294,114200.0,114190.0,0.00314]
[1754121187470,5.50184474,114200.0,114190.0,0.00314]
[1754121187720,0.66397074,114200.0,114190.0,0.00314]
[1754121187985,5.50184474,114200.0,114190.0,0.00314]
[1754121190090,4.865294,114200.0,114190.0,0.00314]
[1754121190229,5.50184474,114200.0,114190.0,0.00314]
[1754121191067,4.865294,114200.0,114190.0,0.00314]
[1754121191314,5.50184474,114200.0,114190.0,0.00314]
[1754121194544,5.50184474,114200.0,114180.0,0.11602989]
[1754121194750,5.50184474,114200.0,114190.0,0.13516]
[1754121203152,4.865294,114200.0,114190.0,0.13516]
[1754121203374,5.50184474,114200.0,114190.0,0.13516]
[1754121205069,4.865294,114200.0,114190.0,0.13516]
[1754121205278,5.50184474,114200.0,114190.0,0.13516]
[1754121206522,5.50184474,114200.0,114190.0,0.13836]
[1754121209816,4.865294,114200.0,114190.0,0.13836]
[1754121210061,5.50184474,114200.0,114190.0,0.13836]
[1754121210448,5.50184474,114200.0,114190.0,0.13516]
[1754121211009,6.13839548,114200.0,114190.0,0.13516]
[1754121211299,4.837874,114190.0,114180.0,0.11627989]
[1754121211615,5.47442474,114190.0,114180.0,0.25338989]
[1754121212476,5.47442474,114190.0,114180.0,0.25538989]
[1754121213203,0.63655074,114190.0,114180.0,0.25538989]
[1754121213421,4.837874,114190.0,114180.0,0.25538989]
[1754121214115,4.837874,114190.0,114180.0,0.89294063]
[1754121216040,4.837874,114190.0,114180.0,0.25638989]
[1754121216256,4.837874,114190.0,114180.0,0.89294063]
[1754121221482,4.837874,114190.0,114180.0,0.25638989]
[1754121221693,4.837874,114190.0,114180.0,0.89294063]
[1754121221948,4.837874,114190.0,114180.0,1.52949137]
[1754121222137,4.837874,114200.0,114180.0,1.52949137]
[1754121222348,4.837874,114200.0,114190.0,0.66621074]
[1754121223241,4.865154,114200.0,114190.0,0.66621074]
[1754121223494,4.837874,114200.0,114190.0,0.66824074]
[1754121223731,0.76218557,114210.0,114190.0,0.66824074]
[1754121223952,4.837874,114200.0,114190.0,0.66824074]
[1754121224182,4.837874,114200.0,114190.0,0.80328074]
[1754121226532,4.837874,114200.0,114190.0,0.16673]
[1754121226760,4.837874,114200.0,114190.0,0.80328074]
[1754121226966,4.837874,114200.0,114190.0,0.16673]
[1754121227182,4.837874,114200.0,114190.0,0.80328074]
[1754121227525,4.837874,114200.0,114190.0,0.16673]
[1754121227774,4.837874,114200.0,114190.0,0.80328074]
[1754121228423,4.865154,114200.0,114190.0,0.80328074]
[1754121229781,4.837874,114200.0,114190.0,0.80328074]
[1754121229966,4.837874,114200.0,114190.0,0.16673]
[1754121232655,5.47442474,114200.0,114190.0,0.16673]
[1754121232892,4.837874,114200.0,114190.0,0.16673]
[1754121233073,5.47442474,114200.0,114190.0,0.16673]
[1754121234464,4.837874,114200.0,114190.0,0.16673]
[1754121234682,5.47442474,114200.0,114190.0,0.16673]
[1754121235299,4.837874,114200.0,114190.0,0.16673]
[1754121235520,5.47442474,114200.0,114190.0,0.16673]
[1754121238242,0.63655074,114200.0,114190.0,0.16673]
[1754121238488,5.47442474,114200.0,114190.0,0.16673]
[1754121238890,4.837874,114200.0,114190.0,0.16673]
[1754121241138,5.50240474,114200.0,114190.0,0.13504]
[1754121242040,4.865854,114200.0,114190.0,0.13504]
[1754121242252,5.50240474,114200.0,114190.0,0.13504]
[1754121242486,4.865854,114200.0,114190.0,0.13504]
[1754121242694,5.50240474,114200.0,114190.0,0.13504]
[1754121242906,4.865854,114200.0,114190.0,0.13504]
[1754121243131,5.50240474,114200.0,114190.0,0.13504]
[1754121244445,5.50240474,114200.0,114190.0,0.13807]
[1754121248242,4.837874,114190.0,114170.0,0.02694]
[1754121248464,5.50240474,114190.0,114180.0,0.13492]
[1754121248903,5.50240474,114190.0,114180.0,0.13795]
[1754121248904,5.51611168,114190.0,114180.0,0.13795]
[1754121249133,5.51611168,114190.0,114180.0,0.16489]
[1754121249357,5.48813168,114190.0,114180.0,0.16489]
[1754121250894,4.85158094,114190.0,114180.0,0.16489]
[1754121251109,4.85158094,114190.0,114180.0,0.16696]
[1754121251315,4.85158094,114190.0,114180.0,0.80351074]
[1754121251514,4.85158094,114190.0,114180.0,0.16696]
[1754121252137,4.85158094,114190.0,114180.0,0.80351074]
[1754121253436,4.85158094,114190.0,114180.0,0.16696]
[1754121256706,4.85158094,114190.0,114180.0,0.80351074]
[1754121256922,0.01370694,114190.0,114180.0,0.80351074]
[1754121257167,4.85158094,114190.0,114180.0,0.80351074]
[1754121258307,4.85158094,114190.0,114180.0,0.16696]
[1754121260110,5.51611168,114190.0,114180.0,0.13492]
[1754121260580,4.87956094,114190.0,114180.0,0.13795]
[1754121261021,5.51611168,114190.0,114180.0,0.13795]
[1754121261232,5.51611168,114190.0,114180.0,0.16489]
[1754121262550,4.87956094,114190.0,114180.0,0.80144074]
[1754121262975,4.85158094,114190.0,114180.0,0.80144074]
[1754121263185,4.85158094,114190.0,114180.0,0.16489]
[1754121263437,4.85158094,114190.0,114180.0,0.16696]
[1754121263690,4.85158094,114190.0,114180.0,0.80351074]
[1754121269419,4.85158094,114190.0,114180.0,0.16696]
[1754121269569,4.85158094,114190.0,114180.0,0.80351074]
[1754121273865,0.01370694,114190.0,114180.0,0.80351074]
[1754121274115,4.85158094,114190.0,114180.0,0.80351074]
[1754121274699,4.85158094,114190.0,114180.0,1.44006148]
[1754121276821,2.851581,114190.0,114180.0,1.44006148]
[1754121277092,0.053762,114200.0,114180.0,1.44006148]
[1754121277295,2.905343,114200.0,114190.0,0.63655074]
[1754121278316,2.687824,114200.0,114190.0,0.66237074]
[1754121278710,2.687824,114200.0,114190.0,0.02877]
[1754121279062,2.687824,114200.0,114190.0,0.66532074]
[1754121279268,2.688824,114200.0,114190.0,0.66532074]
[1754121280558,2.688824,114200.0,114190.0,0.02877]
[1754121280771,2.688824,114200.0,114190.0,0.66748074]
[1754121282685,2.688824,114200.0,114190.0,0.03093]
[1754121282897,2.688824,114200.0,114190.0,0.66748074]
[1754121285220,2.687824,114200.0,114190.0,0.66748074]
[1754121286032,2.687824,114200.0,114190.0,0.66848074]
[1754121286960,2.687824,114200.0,114190.0,0.03193]
[1754121287181,2.687824,114200.0,114190.0,0.66848074]
[1754121289365,2.687824,114200.0,114190.0,0.03193]
[1754121289584,2.687824,114200.0,114190.0,0.66848074]
[1754121293181,0.05831832,114210.0,114190.0,0.66848074]
[1754121293431,2.75984815,114210.0,114200.0,0.80012074]
[1754121294396,2.74614232,114210.0,114200.0,0.80012074]
[1754121294778,2.74614232,114210.0,114200.0,0.80207074]
[1754121294984,2.74614232,114210.0,114200.0,1.43862148]
[1754121295248,2.74614232,114210.0,114200.0,0.80207074]
[1754121295452,2.74714232,114210.0,114200.0,0.80207074]
[1754121295713,2.74614232,114210.0,114200.0,0.16552]
[1754121295920,2.74614232,114210.0,114200.0,0.80207074]
[1754121296161,2.74714232,114210.0,114200.0,0.80207074]
[1754121298035,2.74714232,114210.0,114200.0,0.16552]
[1754121298243,2.74714232,114210.0,114200.0,0.80207074]
[1754121305642,0.05931832,114210.0,114200.0,0.80207074]
[1754121305857,2.74714232,114210.0,114200.0,0.80207074]
[1754121309740,2.76084762,114210.0,114200.0,0.80207074]
[1754121311154,2.76084762,114210.0,114200.0,0.16552]
[1754121311381,2.76084762,114210.0,114200.0,0.80207074]
[1754121311868,2.76084762,114210.0,114200.0,0.16552]
[1754121312111,2.76084762,114210.0,114200.0,0.80207074]
[1754121313277,2.76084762,114210.0,114200.0,0.16552]
[1754121313414,2.76084762,114210.0,114200.0,0.80207074]
[1754121314918,2.76084762,114210.0,114200.0,0.16552]
[1754121315128,2.76084762,114210.0,114200.0,0.80207074]
[1754121316224,2.76084762,114210.0,114200.0,0.16552]
[1754121316439,2.76084762,114210.0,114200.0,0.80012074]
[1754121316661,0.07302362,114210.0,114200.0,0.16357]
[1754121316907,0.07302362,114210.0,114200.0,0.80012074]
[1754121317183,2.76084762,114210.0,114200.0,0.80012074]
[1754121318082,2.76084762,114210.0,114200.0,0.16357]
[1754121318550,2.76084762,114210.0,114200.0,0.16345]
[1754121319841,2.76084762,114210.0,114200.0,0.80000074]
[1754121320054,2.76084762,114210.0,114200.0,0.80195074]
[1754121323860,2.74714232,114210.0,114200.0,0.80195074]
[1754121324295,2.74714232,114210.0,114200.0,0.1654]
[1754121324526,2.74714232,114210.0,114200.0,0.80195074]
[1754121325437,2.74921232,114210.0,114200.0,0.79795074]
[1754121326539,2.74921232,114210.0,114200.0,0.79791074]
[1754121327426,2.74921232,114210.0,114200.0,0.80088074]
[1754121328569,2.74921232,114210.0,114200.0,0.66624074]
[1754121328792,2.74921232,114210.0,114200.0,0.80088074]
[1754121329237,2.55085,114210.0,114200.0,0.80088074]
[1754121330666,2.57688076,114210.0,114200.0,0.80088074]
[1754121332012,2.60282936,114210.0,114200.0,0.80088074]
[1754121336388,0.05404936,114210.0,114200.0,0.80088074]
[1754121336594,2.60282936,114210.0,114200.0,0.80088074]
[1754121339002,2.60282936,114210.0,114200.0,0.80084074]
[1754121342154,2.60282936,114210.0,114200.0,0.16429]
[1754121342411,2.60282936,114210.0,114200.0,0.80084074]
[1754121347139,2.60282936,114210.0,114200.0,0.16429]
[1754121347367,2.60282936,114210.0,114200.0,0.80084074]
[1754121347592,2.60282936,114210.0,114200.0,0.16429]
[1754121347818,2.60282936,114210.0,114200.0,0.80084074]
[1754121350259,2.60075936,114210.0,114200.0,0.80084074]
[1754121350475,2.60075936,114210.0,114200.0,0.16429]
[1754121350697,2.60282936,114210.0,114200.0,0.80084074]
[1754121354758,2.60282936,114210.0,114200.0,0.16429]
[1754121354924,2.60282936,114210.0,114200.0,0.80084074]
[1754121356015,2.61653419,114210.0,114200.0,0.80084074]
[1754121356746,2.61653419,114210.0,114200.0,1.43739148]
[1754121358669,2.61653419,114210.0,114200.0,0.80084074]
[1754121360263,2.61653419,114210.0,114200.0,0.16429]
[1754121360502,2.61653419,114210.0,114200.0,1.43739148]
[1754121360737,2.61653419,114210.0,114200.0,0.79592074]
[1754121360953,2.61653419,114210.0,114200.0,1.43247148]
[1754121361613,2.61653419,114210.0,114200.0,0.79592074]
[1754121362720,2.61653419,114210.0,114200.0,1.43247148]
[1754121362937,2.61653419,114210.0,114200.0,1.43548148]
[1754121363617,2.61653419,114210.0,114200.0,1.43750148]
[1754121364219,0.06775419,114210.0,114200.0,1.43750148]
[1754121364448,2.61653419,114210.0,114200.0,1.43750148]
[1754121365662,2.61653419,114210.0,114200.0,0.80095074]
[1754121365908,2.61653419,114210.0,114200.0,1.43750148]
[1754121366428,2.61653419,114210.0,114200.0,0.80095074]
[1754121366843,2.61653419,114210.0,114200.0,0.1644]
[1754121367055,2.61653419,114210.0,114200.0,0.80095074]
[1754121368827,2.61653419,114210.0,114200.0,0.1644]
[1754121369043,2.61653419,114210.0,114200.0,0.80095074]
[1754121369272,2.61446419,114210.0,114200.0,1.43750148]
[1754121369947,2.61446419,114210.0,114200.0,0.1644]
[1754121370166,2.61653419,114210.0,114200.0,0.80095074]
[1754121371742,2.61653419,114210.0,114200.0,0.1644]
[1754121371959,2.61653419,114210.0,114200.0,0.80095074]
[1754121374983,2.406936,114210.0,114200.0,0.80095074]
[1754121375412,2.43279187,114210.0,114200.0,0.80095074]
[1754121376286,2.46776865,114210.0,114200.0,0.80095074]
[1754121376714,0.06290265,114210.0,114200.0,0.80095074]
[1754121376920,2.46776865,114210.0,114200.0,0.80095074]
[1754121377377,2.46776865,114210.0,114200.0,0.1644]
[1754121377594,2.46776865,114210.0,114200.0,0.80095074]
[1754121379285,2.46776865,114210.0,114200.0,0.1644]
[1754121379494,2.46776865,114210.0,114200.0,0.80095074]
[1754121383504,2.46776865,114210.0,114200.0,0.1644]
[1754121383700,2.46776865,114210.0,114200.0,0.80095074]
[1754121384543,2.46776865,114210.0,114200.0,0.1644]
[1754121384776,2.46776865,114210.0,114200.0,0.80095074]
[1754121384981,2.46569865,114210.0,114200.0,1.43750148]
[1754121385798,2.46569865,114210.0,114200.0,0.80095074]
[1754121386062,2.46569865,114210.0,114200.0,1.43750148]
[1754121386467,2.46771865,114210.0,114200.0,1.43750148]
[1754121388176,2.46771865,114210.0,114200.0,0.80095074]
[1754121388370,2.46771865,114210.0,114200.0,0.1644]
[1754121388633,2.46771865,114210.0,114200.0,0.80095074]
[1754121388763,2.46771865,114210.0,114200.0,1.43750148]
[1754121388990,2.248493,114210.0,114200.0,1.43750148]
[1754121390253,2.27497796,114210.0,114200.0,0.79592074]
[1754121391274,2.30995474,114210.0,114200.0,0.79902074]
[1754121392962,2.30995474,114210.0,114200.0,0.80114074]
[1754121393657,2.30995474,114210.0,114200.0,1.43769148]
[1754121393862,2.30793474,114210.0,114200.0,1.43769148]
[1754121395406,0.06146174,114210.0,114200.0,1.43769148]
[1754121395634,2.30793474,114210.0,114200.0,1.43769148]
[1754121395856,2.246473,114210.0,114200.0,1.43769148]
[1754121399116,2.28234433,114210.0,114200.0,1.43769148]
[1754121400408,2.30920306,114210.0,114200.0,1.43769148]
[1754121407133,0.06273006,114210.0,114200.0,1.43769148]
[1754121407338,2.246473,114210.0,114200.0,0.16459]
[1754121407546,2.246473,114210.0,114200.0,1.43769148]
[1754121407816,2.246473,114210.0,114200.0,0.80114074]
[1754121408230,2.28295021,114210.0,114200.0,0.80114074]
[1754121408682,2.28295021,114210.0,114200.0,0.16459]
[1754121408898,2.28295021,114210.0,114200.0,0.80114074]
[1754121410617,2.30901665,114210.0,114200.0,0.80114074]
[1754121411056,2.30901665,114210.0,114200.0,0.16459]
[1754121411265,2.31099665,114210.0,114200.0,0.16459]
[1754121411514,2.31099665,114210.0,114200.0,0.80114074]
[1754121412454,2.31099665,114210.0,114200.0,1.43769148]
[1754121412695,2.30901665,114210.0,114200.0,0.80114074]
[1754121414066,2.30901665,114210.0,114200.0,1.43769148]
[1754121415808,2.30901665,114210.0,114200.0,0.80114074]
[1754121416477,2.30901665,114210.0,114200.0,1.43769148]
[1754121419308,2.28295021,114210.0,114200.0,1.52189137]
[1754121420673,0.03647721,114210.0,114200.0,1.52189137]
[1754121420882,0.03647721,114210.0,114200.0,1.54921737]
[1754121421173,2.246473,114210.0,114200.0,1.54921737]
[1754121422621,2.246473,114210.0,114200.0,1.54901737]
[1754121422826,2.246473,114210.0,114200.0,1.55001737]
[1754121425079,0.03548004,114210.0,114200.0,1.55001737]
[1754121425289,0.03117297,114220.0,114200.0,1.55001737]
[1754121425470,2.246473,114210.0,114200.0,0.75429663]
[1754121425701,2.246473,114210.0,114200.0,1.52524737]
[1754121426182,2.246473,114210.0,114200.0,1.55845737]
[1754121426995,0.03117297,114220.0,114200.0,1.55845737]
[1754121427170,2.27764597,114220.0,114210.0,0.77095074]
[1754121427375,2.27962597,114220.0,114210.0,0.80516074]
[1754121429761,2.31477815,114220.0,114210.0,0.80516074]
[1754121433009,2.31477815,114220.0,114210.0,0.16861]
[1754121434200,2.31477815,114220.0,114210.0,0.80516074]
[1754121437579,2.31477815,114220.0,114210.0,0.16861]
[1754121437789,2.31477815,114220.0,114210.0,0.80516074]
[1754121438834,2.31477815,114220.0,114210.0,0.16861]
[1754121439300,2.31477815,114220.0,114210.0,0.17158]
[1754121440309,2.75969492,114220.0,114210.0,0.17158]
[1754121441126,2.12314418,114220.0,114210.0,0.17158]
[1754121441368,2.75969492,114220.0,114210.0,0.17158]
[1754121444673,2.75969492,114220.0,114210.0,0.16861]
[1754121445185,2.14885587,114220.0,114210.0,0.16861]
[1754121445395,2.78540661,114220.0,114210.0,0.16861]
[1754121447980,2.14885587,114220.0,114210.0,0.16861]
[1754121448183,2.78540661,114220.0,114210.0,0.16861]
[1754121449114,2.14885587,114220.0,114210.0,0.16861]
[1754121449342,2.78540661,114220.0,114210.0,0.16861]
[1754121450653,2.28321587,114220.0,114210.0,0.16861]
[1754121450876,2.91976661,114220.0,114210.0,0.16861]
[1754121454147,2.28321587,114220.0,114210.0,0.16861]
[1754121454371,2.91976661,114220.0,114210.0,0.16861]
[1754121454613,2.91976661,114220.0,114210.0,0.17167]
[1754121455078,0.83375461,114220.0,114210.0,0.17167]
[1754121455303,2.91976661,114220.0,114210.0,0.16861]
[1754121456857,2.28321587,114220.0,114210.0,0.16861]
[1754121457063,2.91976661,114220.0,114210.0,0.16861]
[1754121458871,2.28321587,114220.0,114210.0,0.16861]
[1754121459079,2.91976661,114220.0,114210.0,0.16861]
[1754121459490,2.28321587,114220.0,114210.0,0.16861]
[1754121459699,2.91976661,114220.0,114210.0,0.16861]
[1754121460332,2.28321587,114220.0,114210.0,0.16861]
[1754121460476,2.91976661,114220.0,114210.0,0.16861]
[1754121463680,2.28321587,114220.0,114210.0,0.16861]
[1754121463890,2.91976661,114220.0,114210.0,0.16861]
[1754121466603,2.28321587,114220.0,114210.0,0.16861]
[1754121466807,2.91976661,114220.0,114210.0,0.16861]
[1754121468815,0.83375461,114220.0,114210.0,0.16861]
[1754121469029,2.91976661,114220.0,114210.0,0.16861]
[1754121469527,2.28321587,114220.0,114210.0,0.16861]
[1754121469729,2.91976661,114220.0,114210.0,0.16861]
[1754121471126,2.28321587,114220.0,114210.0,0.17167]
[1754121471304,2.91976661,114220.0,114210.0,0.17167]
[1754121471741,2.28321587,114220.0,114210.0,0.17167]
[1754121471944,2.91976661,114220.0,114210.0,0.17167]
[1754121472561,2.28321587,114220.0,114210.0,0.17167]
[1754121472763,2.91976661,114220.0,114210.0,0.17167]
[1754121477407,2.28321587,114220.0,114210.0,0.17379]
[1754121478067,2.14885587,114220.0,114210.0,0.17379]
[1754121478671,2.14885587,114220.0,114210.0,0.81034074]
[1754121479406,2.14885587,114220.0,114210.0,0.17379]
[1754121479621,2.14885587,114220.0,114210.0,0.81034074]
[1754121479824,2.28313587,114220.0,114210.0,0.81022074]
[1754121480028,2.28313587,114220.0,114210.0,0.17367]
[1754121480259,2.14885587,114220.0,114210.0,0.17367]
[1754121481334,2.14885587,114220.0,114210.0,0.81022074]
[1754121481551,2.12116418,114220.0,114210.0,0.89442063]
[1754121481774,2.25544418,114220.0,114210.0,0.89442063]
[1754121481983,0.16943218,114220.0,114210.0,0.89442063]
[1754121482233,2.25544418,114220.0,114210.0,0.89442063]
[1754121482447,2.12116418,114220.0,114210.0,0.89442063]
[1754121484737,2.12116418,114220.0,114210.0,0.25786989]
[1754121484951,2.12116418,114220.0,114210.0,0.89442063]
[1754121485786,2.12116418,114220.0,114210.0,0.25786989]
[1754121485999,2.12116418,114220.0,114210.0,0.89442063]
[1754121486430,2.12116418,114220.0,114210.0,0.25786989]
[1754121486662,2.12116418,114220.0,114210.0,0.89442063]
[1754121492893,0.03515218,114220.0,114210.0,0.89442063]
[1754121493153,2.12116418,114220.0,114210.0,0.89442063]
[1754121494790,2.12116418,114220.0,114210.0,0.25786989]
[1754121494992,2.12315418,114220.0,114210.0,0.25786989]
[1754121495606,2.75970492,114220.0,114210.0,0.25786989]
[1754121499594,2.89394492,114220.0,114210.0,0.25786989]
[1754121500740,2.75970492,114220.0,114210.0,0.25786989]
[1754121500964,2.89394492,114220.0,114210.0,0.25786989]
[1754121501410,2.75970492,114220.0,114210.0,0.25786989]
[1754121501668,2.89394492,114220.0,114210.0,0.25786989]
[1754121501862,2.75970492,114220.0,114210.0,0.25786989]
[1754121502012,2.89394492,114220.0,114210.0,0.25786989]
[1754121502448,2.12315418,114220.0,114210.0,0.25786989]
[1754121502651,2.25735418,114220.0,114210.0,0.25786989]
[1754121502884,2.75970492,114220.0,114210.0,0.25786989]
[1754121503203,2.89390492,114220.0,114210.0,0.25786989]
[1754121504216,2.75970492,114220.0,114210.0,0.25786989]
[1754121504425,2.89390492,114220.0,114210.0,0.25786989]
[1754121504853,2.75970492,114220.0,114210.0,0.25786989]
[1754121505119,2.89390492,114220.0,114210.0,0.25786989]
[1754121507291,2.75970492,114220.0,114210.0,0.25786989]
[1754121507783,2.89390492,114220.0,114210.0,0.25786989]
[1754121508737,2.75970492,114220.0,114210.0,0.25786989]
[1754121508881,0.80789292,114220.0,114210.0,0.25786989]
[1754121509084,2.89390492,114220.0,114210.0,0.25786989]
[1754121509959,2.75970492,114220.0,114210.0,0.25786989]
[1754121510155,2.89390492,114220.0,114210.0,0.25786989]
[1754121510816,2.89390492,114220.0,114210.0,0.25268989]
[1754121514409,2.25735418,114220.0,114210.0,0.25268989]
[1754121514615,2.89390492,114220.0,114210.0,0.25268989]
[1754121515194,2.25735418,114220.0,114210.0,0.25268989]
[1754121515427,2.89390492,114220.0,114210.0,0.25268989]
[1754121515670,2.89390492,114220.0,114210.0,0.25566989]
[1754121516783,2.89239319,114220.0,114210.0,0.25566989]
[1754121518635,2.25584245,114220.0,114210.0,0.25566989]
[1754121518838,2.89239319,114220.0,114210.0,0.25566989]
[1754121519047,2.75819319,114220.0,114210.0,0.25566989]
[1754121519494,0.67218119,114220.0,114210.0,0.25566989]
[1754121519710,2.75819319,114220.0,114210.0,0.25566989]
[1754121521201,2.12164245,114220.0,114210.0,0.25566989]
[1754121521415,2.75819319,114220.0,114210.0,0.25566989]
[1754121523347,2.086012,114210.0,114200.0,0.03492]
[1754121523562,2.72455274,114210.0,114200.0,0.13416]
[1754121523776,2.74168274,114210.0,114200.0,0.13416]
[1754121524004,2.72455274,114210.0,114200.0,0.13416]
[1754121524225,2.72455274,114210.0,114200.0,0.16908]
[1754121524630,2.72455274,114210.0,114200.0,0.17008]
[1754121525036,2.72455274,114210.0,114200.0,0.17108]
[1754121530027,0.63854074,114210.0,114200.0,0.17108]
[1754121530235,2.72455274,114210.0,114200.0,0.17108]
[1754121531490,2.72455274,114210.0,114200.0,0.17104]
[1754121534817,2.088002,114210.0,114200.0,0.17104]
[1754121535027,2.72455274,114210.0,114200.0,0.17104]
[1754121535245,2.72455274,114210.0,114200.0,0.17403]
[1754121536321,2.088002,114210.0,114200.0,0.17403]
[1754121536543,2.72455274,114210.0,114200.0,0.17403]
[1754121536937,2.088002,114210.0,114200.0,0.17403]
[1754121537218,2.72455274,114210.0,114200.0,0.17403]
[1754121539170,2.50754052,114210.0,114200.0,0.17403]
[1754121539415,2.50821074,114210.0,114200.0,0.17403]
[1754121539910,1.87166,114210.0,114200.0,0.17403]
[1754121540264,2.50821074,114210.0,114200.0,0.17403]
[1754121540481,2.50821074,114210.0,114200.0,0.17104]
[1754121541494,2.50821074,114210.0,114200.0,0.17403]
[1754121545676,1.87166,114210.0,114200.0,0.17403]
[1754121545882,2.50821074,114210.0,114200.0,0.17403]
[1754121546347,2.50821074,114210.0,114200.0,0.17604]
[1754121549772,2.50821074,114210.0,114200.0,0.04192]
[1754121550041,2.50821074,114210.0,114200.0,0.03692]
[1754121550581,2.50821074,114210.0,114200.0,0.03991]
[1754121570025,1.87166,114210.0,114200.0,0.03991]
[1754121570246,2.50821074,114210.0,114200.0,0.03692]
[1754121570467,2.52473074,114210.0,114200.0,0.002]
[1754121570903,1.88818,114210.0,114200.0,0.002]
[1754121571112,2.50821074,114210.0,114200.0,0.002]
[1754121571323,2.50821074,114210.0,114200.0,0.03606]
[1754121571532,1.87166,114210.0,114200.0,0.03606]
[1754121571741,2.50821074,114210.0,114200.0,0.03606]
[1754121573880,2.50821074,114210.0,114200.0,0.03915]
[1754121574747,1.87166,114210.0,114200.0,0.03915]
[1754121574964,2.50821074,114210.0,114200.0,0.03915]
[1754121579573,2.50821074,114210.0,114200.0,0.03606]
[1754121580003,2.50821074,114210.0,114200.0,0.03915]
[1754121580596,0.63722074,114210.0,114200.0,0.03915]
[1754121581122,2.50821074,114210.0,114200.0,0.03915]
[1754121581323,1.87166,114210.0,114200.0,0.03915]
[1754121581564,2.50821074,114210.0,114200.0,0.03915]
[1754121581755,1.87166,114210.0,114200.0,0.03915]
[1754121581980,2.50821074,114210.0,114200.0,0.03915]
[1754121589775,2.50821074,114210.0,114200.0,0.03606]
[1754121589965,2.52473074,114210.0,114200.0,0.002]
[1754121590220,2.52473074,114210.0,114200.0,0.13592]
[1754121590221,3.16128148,114210.0,114200.0,0.13592]
[1754121590439,2.52473074,114210.0,114200.0,0.002]
[1754121590655,3.67681749,114210.0,114200.0,0.002]
[1754121590876,3.63562148,114210.0,114200.0,0.002]
[1754121591091,3.9123864,114210.0,114200.0,0.001]
[1754121591372,0.51513134,114200.0,114190.0,0.13392]
[1754121591590,1.87099,114190.0,114180.0,0.1711178]
[1754121591816,2.50821074,114190.0,114180.0,0.1680278]
[1754121592242,2.50821074,114190.0,114180.0,0.1339678]
[1754121592461,3.50128148,114190.0,114180.0,4.78e-05]
[1754121592701,3.50170148,114190.0,114180.0,4.78e-05]
[1754121593553,2.86515074,114190.0,114180.0,4.78e-05]
[1754121593763,2.99869074,114190.0,114180.0,4.78e-05]
[1754121594430,3.01239712,114190.0,114180.0,4.78e-05]
[1754121595267,3.03873112,114190.0,114180.0,4.78e-05]
[1754121595440,3.02502474,114190.0,114180.0,4.78e-05]
[1754121596877,3.00850474,114190.0,114180.0,4.78e-05]
[1754121598118,2.371954,114190.0,114180.0,0.0338478]
[1754121598336,3.00850474,114190.0,114180.0,0.0338478]
[1754121598754,3.00850474,114190.0,114180.0,4.78e-05]
[1754121599784,3.02221134,114190.0,114180.0,4.78e-05]
[1754121601047,2.3856606,114190.0,114180.0,4.78e-05]
[1754121601269,3.02221134,114190.0,114180.0,4.78e-05]
[1754121601529,3.07490134,114190.0,114180.0,4.78e-05]
[1754121601732,3.02221134,114190.0,114180.0,4.78e-05]
[1754121601950,3.02221134,114190.0,114180.0,0.0338478]
[1754121602772,2.80863834,114190.0,114180.0,0.0338478]
[1754121603276,2.79493174,114190.0,114180.0,0.0338478]
[1754121603448,2.79493174,114190.0,114180.0,4.78e-05]
[1754121604016,2.79493174,114190.0,114180.0,0.0338478]
[1754121604229,2.79493174,114190.0,114180.0,0.0367778]
[1754121605414,2.66097174,114190.0,114180.0,0.0367778]
[1754121605616,2.66097174,114190.0,114180.0,0.0388078]
[1754121606032,2.79493174,114190.0,114180.0,0.0388078]
[1754121606240,2.8086379,114190.0,114180.0,0.0388078]
[1754121606459,0.38004016,114190.0,114180.0,0.0388078]
[1754121606663,2.03745716,114190.0,114180.0,0.67535854]
[1754121607475,2.01112316,114190.0,114180.0,0.67535854]
[1754121607676,2.01112316,114190.0,114180.0,0.67635854]
[1754121607889,2.01112316,114190.0,114180.0,0.0398078]
[1754121608198,2.6476739,114190.0,114180.0,0.0398078]
[1754121608335,2.6476739,114190.0,114180.0,0.0418078]
[1754121611883,2.01112316,114190.0,114180.0,0.0418078]
[1754121612102,2.6476739,114190.0,114180.0,0.0418078]
[1754121613356,2.01112316,114190.0,114180.0,0.0418078]
[1754121613572,2.63396774,114190.0,114180.0,0.0418078]
[1754121614935,1.997417,114190.0,114180.0,0.0418078]
[1754121615150,2.63396774,114190.0,114180.0,0.0418078]
[1754121616630,2.63396774,114190.0,114180.0,0.0398078]
[1754121617762,2.63396774,114190.0,114180.0,0.0388078]
[1754121617970,2.6476736,114190.0,114180.0,0.0388078]
[1754121618190,2.6476736,114190.0,114180.0,0.0408078]
[1754121618863,2.01112286,114190.0,114180.0,0.0408078]
[1754121619294,2.01112286,114190.0,114180.0,0.0418078]
[1754121625276,2.6483436,114190.0,114180.0,0.0418078]
[1754121625748,2.01179286,114190.0,114180.0,0.0418078]
[1754121626733,2.63463774,114190.0,114180.0,0.0418078]
[1754121627442,1.998087,114190.0,114180.0,0.0418078]
[1754121628618,1.997417,114190.0,114180.0,0.67835854]
[1754121628888,1.997417,114190.0,114180.0,0.0418078]
[1754121629141,0.34,114190.0,114180.0,0.0418078]
[1754121629391,0.34,114190.0,114180.0,0.67835854]
[1754121629392,1.997417,114190.0,114180.0,0.67835854]
[1754121629581,2.0111225,114190.0,114180.0,0.67835854]
[1754121630006,2.0111225,114190.0,114180.0,0.0418078]
[1754121630223,2.0111225,114190.0,114180.0,0.67835854]
[1754121632304,2.0111225,114190.0,114180.0,0.0418078]
[1754121632947,2.0111225,114190.0,114180.0,0.67835854]
[1754121634068,2.0111225,114190.0,114180.0,0.0418078]
[1754121636271,2.0111225,114190.0,114180.0,0.67835854]
[1754121638798,2.0111225,114190.0,114180.0,0.0418078]
[1754121639012,2.0111225,114190.0,114180.0,0.67835854]
[1754121640734,0.3537055,114190.0,114180.0,0.67835854]
[1754121640944,2.0111225,114190.0,114180.0,0.67735854]
[1754121643603,2.0111225,114190.0,114180.0,0.0408078]
[1754121643846,2.0111225,114190.0,114180.0,0.67535854]
[1754121644243,2.0111225,114190.0,114180.0,0.67835854]
[1754121644972,0.34,114190.0,114180.0,1.39910917]
[1754121645178,0.34,114190.0,114180.0,1.40110917]
[1754121645984,0.34,114190.0,114180.0,1.39910917]
[1754121646445,0.34,114190.0,114180.0,1.40210917]
[1754121647043,0.34,114190.0,114180.0,1.39910917]
[1754121647243,0.34,114190.0,114180.0,0.12600769]
[1754121647467,0.34,114190.0,114180.0,1.40529869]
[1754121647639,0.34,114190.0,114180.0,1.40310917]